[Event "GER-chT Youth Countries 2018"]
[Site "Wurzburg"]
[Date "2018.10.06"]
[Round "6"]
[White "Metzdorf, Matteo"]
[Black "Weidenhoefer, Max"]
[Result "1-0"]
[ECO "B18"]
[WhiteElo "1806"]
[BlackElo "1596"]
[Annotator "NA RC"]
[PlyCount "79"]
[EventDate "2018.10.03"]
[EventType "team-tourn"]
[EventCountry "GER"]
[SourceTitle "playchess.com"]
[Source "ChessBase"]
[SourceQuality "1"]
[TimeControl "40/5400+30:1800+30"]

{[%evp 21,74,51,61,35,92,49,68,74,100,90,106,59,125,87,259,186,232,217,247,244,32767,32767,32767,250,229,234,278,328,344,223,225,243,248,343,375,146,589,629,650,512,32767,32767,32767,32767,32767,32767,650,705,724,796,936,1042,901,1044,1156]} 1. e4 {[%emt 0:00:04]} c6 {[%emt 0:00:00]} 2. d4 {[%emt 0:00:00]} d5 {[%emt 0:00:00]} 3. Nc3 {[%emt 0:00:00]} dxe4 {[%emt 0:00:00]} 4. Nxe4 {[%emt 0:00:00]} Bf5 {[%emt 0:00:00]} 5. Ng3 {[%emt 0:00:00]} Bg6 {[%emt 0:00:02]} 6. Nh3 {[%emt 0:00:00]} e6 {[%emt 0:00:21]} 7. Nf4 {[%emt 0:00:08]} Bd6 {[%emt 0:00:12]} 8. h4 {[%emt 0:00:16]} Qc7 {[%emt 0:00:23]} 9. Nxg6 hxg6 {[%emt 0:00:08]} 10. Ne4 {[%emt 0:00:29] B18: Classical Caro-Kann: 4...Bf5 sidelines} Be7 {[%emt 0:01:36]} (10... Bf4 11. Bxf4 Qxf4 {½-½ (11) Delchev,A (2558)-Jobava,B (2669) Gallipoli 2018}) 11. g3 {[%emt 0:05:06]} Nf6 {[%emt 0:02:35]} 12. Ng5 {[%emt 0:02:28]} Nd5 $146 {[%emt 0:03:04]} (12... O-O $11 {remains equal.}) ({Predecessor:} 12... Nbd7 13. Bg2 Qa5+ 14. c3 Qa6 15. Qb3 O-O 16. Bd2 e5 17. O-O-O exd4 18. cxd4 {½-½ (45) Margolin,B (2398)-Hahn,M (2303) Germany 2015}) 13. c3 {[%emt 0:18:41]} Nd7 {[%emt 0:03:32]} 14. Bg2 {[%emt 0:02:44]} N7f6 {[%emt 0:01:12]} 15. O-O {[%emt 0:05:36]} O-O {[%emt 0:01:37]} 16. Re1 {[%emt 0:05:23]} (16. c4 $16) 16... Rfd8 {[%emt 0:05:17]} (16... c5 $14) 17. Bh3 {[%emt 0:09:02]} Qd6 {[%emt 0:11:47]} (17... c5 $16) 18. Qc2 {[%emt 0:05:41]} Bf8 {[%emt 0:09:04] [#]} 19. Nxf7 $1 {[%emt 0:13:53]} Kxf7 {[%emt 0:02:02]} 20. Bxe6+ {[%emt 0:00:14]} Qxe6 {[%emt 0:00:33]} 21. Rxe6 {[%emt 0:00:06]} Kxe6 {[%emt 0:00:06]} 22. Qxg6 {[%emt 0:00:42]} Ne7 {[%emt 0:01:54]} 23. Qc2 {[%emt 0:04:12]} Kf7 {[%emt 0:01:09]} 24. Qb3+ {[%emt 0:08:57]} Nfd5 {[%emt 0:00:57]} 25. Bg5 {[%emt 0:00:45]} Rd7 {[%emt 0:02:17]} 26. Re1 {[%emt 0:02:47]} Kg8 {[%emt 0:10:04]} 27. c4 {[%emt 0:04:42]} Nb6 {[%emt 0:00:56]} 28. Qe3 {[%emt 0:00:41]} (28. Qc2 $18 {und Weiss behält klar die Oberhand.}) 28... Kh8 $2 {[%emt 0:02:39]} (28... Nf5 {is more resistant.} 29. Qe6+ Rf7) 29. Qe6 {[%emt 0:02:32]} Rc7 {[%emt 0:16:24]} 30. Qf7 {[%emt 0:00:38]} Ned5 {[%emt 0:07:43]} 31. Qh5+ {[%emt 0:00:19]} Kg8 {[%emt 0:00:07]} 32. cxd5 {[%emt 0:00:08]} cxd5 {[%emt 0:00:23]} 33. Qg6 {[%emt 0:01:59]} Rac8 {[%emt 0:01:29]} 34. Re8 {[%emt 0:03:40]} Rxe8 {[%emt 0:01:35]} 35. Qxe8 {[%emt 0:00:06]} Rc8 {[%emt 0:00:05]} 36. Qe6+ {[%emt 0:00:49]} Kh8 {[%emt 0:00:13]} 37. h5 {[%emt 0:00:44]} Rc2 $18 {[%emt 0:01:53]} 38. Qf7 {[%emt 0:00:34]} Rc8 {[%emt 0:00:36]} 39. Qxb7 {[%emt 0:02:01]} Ra8 {[%emt 0:00:23]} 40. a4 {[%emt 0:01:51]} 1-0

[Event "GER-chT Youth Countries 2018"]
[Site "Wurzburg"]
[Date "2018.10.06"]
[Round "6"]
[White "Glinzner, Alva"]
[Black "Hetzner, Hannes"]
[Result "1-0"]
[ECO "C05"]
[WhiteElo "1787"]
[BlackElo "1855"]
[Annotator "NA RC"]
[PlyCount "119"]
[EventDate "2018.10.03"]
[EventType "team-tourn"]
[EventCountry "GER"]
[SourceTitle "playchess.com"]
[Source "ChessBase"]
[SourceQuality "1"]
[TimeControl "40/5400+30:1800+30"]

{[%evp 20,103,43,45,47,35,60,62,120,113,101,118,288,199,210,159,174,168,169,146,286,312,332,281,415,391,405,187,206,170,269,265,282,4,138,-197,211,-140,-256,32767,512,32767,555,32767,32767,32767,32767,617,579,581,571,511,930,947,2226,32767,32767,32767,32767,1757,1815,32767,5243,704,646,32767,32767,32767,32767,860,32767,32767,32767,32767,32767,32767,32767,32767,705,815,730,897,742,29967,5531,12249]} 1. e4 {[%emt 0:00:00]} e6 {[%emt 0:00:00]} 2. d4 {[%emt 0:00:00]} d5 {[%emt 0:00:00]} 3. Nd2 {[%emt 0:00:04]} Nf6 {[%emt 0:00:00]} 4. e5 {[%emt 0:00:19]} Nfd7 {[%emt 0:00:00]} 5. f4 {[%emt 0:00:12]} c5 {[%emt 0:00:05]} 6. c3 {[%emt 0:00:07]} Nc6 {[%emt 0:00:07]} 7. Ndf3 {[%emt 0:00:15]} Qb6 {[%emt 0:00:11]} 8. g3 {[%emt 0:00:23]} Be7 {[%emt 0:00:34]} 9. Kf2 {[%emt 0:01:37] C05: French Tarrasch: 3...Nf6 4 e5 Nfd7, 5 f4 and 5 Bd3 sidelines} (9. Ne2 a5 10. a3 a4 11. f5 Na5 12. Nf4 Nb3 13. Rb1 cxd4 14. cxd4 Nb8 15. Be3 Nc6 16. fxe6 Bxe6 17. Bd3 {0-1 (31) Anton Guijarro,D (2627)-Kovalenko,I (2668) Almaty 2016}) 9... f6 {[%emt 0:03:02]} 10. Kg2 {[%emt 0:00:44]} O-O {[%emt 0:04:51]} 11. Bd3 {[%emt 0:01:12]} cxd4 {[%emt 0:14:26]} 12. cxd4 {[%emt 0:00:14] LiveBook: 11 Games} fxe5 {[%emt 0:10:34]} 13. fxe5 {[%emt 0:02:52]} Nxd4 {[%emt 0:09:02]} ({Black should play} 13... Rf7 $14) 14. Nxd4 {[%emt 0:00:51]} Nxe5 {[%emt 0:03:07] [#]} 15. Bc2 $1 {[%emt 0:03:31]} Kh8 $2 $146 {[%emt 0:13:16]} (15... Bd7 $16 {was called for.}) ({Predecessor:} 15... Bc5 16. Ngf3 Bd7 {0-1 (31) Jasny,S (2385)-Hjelmaas,L (2282) Olomouc 2014}) 16. Ngf3 {[%emt 0:10:26]} ({But not} 16. Qh5 $6 g6 $18) 16... Nxf3 {[%emt 0:04:53]} 17. Nxf3 {[%emt 0:00:18]} e5 {[%emt 0:06:24]} 18. Qxd5 {[%emt 0:05:23]} Bg4 {[%emt 0:05:22]} 19. Be4 {[%emt 0:07:29]} Qa6 {[%emt 0:03:58]} 20. Re1 {[%emt 0:14:16]} Bb4 {[%emt 0:04:44]} 21. Re3 {[%emt 0:00:32]} ({Schlechter ist} 21. Qxb7 Qxb7 22. Bxb7 Rab8 $11) 21... Rf6 $2 {[%emt 0:11:29]} (21... Rac8) 22. Bd3 {[%emt 0:10:26]} Qb6 {[%emt 0:01:17]} 23. Be2 {[%emt 0:10:18]} (23. Nxe5 $142 Be6 24. Qe4) 23... Raf8 {[%emt 0:00:54]} 24. Qe4 {[%emt 0:09:34]} ({Und nicht} 24. Qxe5 Qc6 $11) ({Viel schwächer ist} 24. Kh1 $6 Rxf3 25. Bxf3 Qxe3 $11) 24... Bc5 {[%emt 0:01:34] [#]} (24... Bf5 {might work better.} 25. Qxe5 Bd7) 25. Rb3 $1 {[%emt 0:00:34]} ({Not} 25. Nxe5 $2 Rf2+ 26. Kh1 Rxe2 $19) ({Avoid the trap} 25. Qxe5 $2 Re6 $19) 25... Qe6 {[%emt 0:00:28]} 26. Bd2 $2 {[%emt 0:11:02]} (26. Be3 $18 Bxe3 27. Rxe3) 26... Bf5 {[%emt 0:00:52]} (26... b6 $1 $11 {remains equal.}) 27. Qxb7 $2 {[%emt 0:04:30] [#]} (27. Qxe5 $16 Qxe5 28. Nxe5) 27... Bh3+ $1 {[%emt 0:00:57]} 28. Kh1 {[%emt 0:00:12] [#]} e4 $1 {[%emt 0:00:41]} 29. Ng5 {[%emt 0:01:09]} Qf5 $4 {[%emt 0:00:59]} (29... Bg2+ $1 $19 {und Schwarz kann entspannen.} 30. Kxg2 Rf2+ 31. Kh1 Rxh2+ 32. Kxh2 Qh6+ 33. Nh3 Rf2+ 34. Kg1 Qxh3 35. Qb8+ Rf8+ 36. Be3 Bxe3+ 37. Rxe3 Rxb8) 30. Bf4 {[%emt 0:01:30]} h6 {[%emt 0:00:39]} 31. Nxh3 {[%emt 0:01:54]} Qxh3 {[%emt 0:00:13]} 32. Qxe4 {[%emt 0:00:10]} Re6 {[%emt 0:00:23]} 33. Qc4 {[%emt 0:01:42]} Rfe8 {[%emt 0:00:27]} 34. Bf1 {[%emt 0:01:24]} ({Less strong is} 34. Qxc5 Rxe2 35. Qg1 Qe6 $16) 34... Qh5 {[%emt 0:00:19]} 35. Bd2 {[%emt 0:00:47]} Re2 {[%emt 0:00:15]} (35... Re4 $142) 36. Bxe2 {[%emt 0:00:38]} Rxe2 {[%emt 0:00:05]} 37. Rb8+ {[%emt 0:00:21]} Kh7 {[%emt 0:00:11]} 38. Qd3+ {[%emt 0:00:23]} g6 {[%emt 0:00:18]} 39. Rb7+ {[%emt 0:00:34]} Be7 {[%emt 0:00:11]} 40. h4 {[%emt 0:01:08]} Qg4 {[%emt 0:01:08]} 41. Rxe7+ {[%emt 0:02:16]} Rxe7 {[%emt 0:00:45]} 42. Re1 {[%emt 0:03:16]} Rf7 {[%emt 0:02:13]} 43. Kg2 {[%emt 0:02:35]} Qa4 {[%emt 0:01:05]} 44. h5 {[%emt 0:05:36]} Qc6+ {[%emt 0:03:18]} 45. Qe4 {[%emt 0:02:13]} Qxe4+ {[%emt 0:01:26]} 46. Rxe4 {[%emt 0:00:04]} gxh5 {[%emt 0:00:46]} 47. Re6 {[%emt 0:00:18]} Rd7 {[%emt 0:00:17]} 48. Rxh6+ {[%emt 0:01:14]} Kg7 {[%emt 0:00:17]} 49. Bf4 {[%emt 0:00:07]} Rb7 {[%emt 0:01:29]} 50. Kf3 {[%emt 0:02:28]} Rxb2 {[%emt 0:00:48]} 51. Be5+ {[%emt 0:00:12]} Kxh6 $18 {[%emt 0:00:07]} 52. Bxb2 {[%emt 0:00:02]} Kg5 {[%emt 0:00:27]} 53. Ke4 {[%emt 0:00:13]} h4 {[%emt 0:00:31]} 54. gxh4+ {[%emt 0:00:44]} Kxh4 {[%emt 0:00:11]} 55. a4 {[%emt 0:00:04]} Kg5 {[%emt 0:00:41]} 56. a5 {[%emt 0:00:32]} a6 {[%emt 0:02:25]} 57. Be5 {[%emt 0:01:53]} Kg6 {[%emt 0:00:10]} 58. Kd5 {[%emt 0:00:19]} Kf7 {[%emt 0:01:04]} 59. Kc6 {[%emt 0:01:03]} Ke7 {[%emt 0:00:39]} 60. Bc7 {[%emt 0:00:41]} 1-0

[Event "GER-chT Youth Countries 2018"]
[Site "Wurzburg"]
[Date "2018.10.06"]
[Round "6"]
[White "Weimert, Miriam"]
[Black "Kageler, Anton Paul"]
[Result "1-0"]
[ECO "B24"]
[WhiteElo "1776"]
[BlackElo "1459"]
[Annotator "NA RC"]
[PlyCount "67"]
[EventDate "2018.10.03"]
[EventType "team-tourn"]
[EventCountry "GER"]
[SourceTitle "playchess.com"]
[Source "ChessBase"]
[SourceQuality "1"]
[TimeControl "40/5400+30:1800+30"]

1. e4 {[%emt 0:00:00]} c5 {[%emt 0:00:00]} 2. Nc3 {[%emt 0:00:00]} Nc6 {[%emt 0:00:00]} 3. Bc4 {[%emt 0:00:06]} g6 {[%emt 0:00:23]} 4. d3 {[%emt 0:00:29]} Bg7 {[%emt 0:00:24]} 5. h4 {[%emt 0:00:48]} e6 {[%emt 0:01:46]} 6. h5 {[%emt 0:02:37]} Nge7 {[%emt 0:02:55]} 7. hxg6 {[%emt 0:03:06]} fxg6 {[%emt 0:03:17]} 8. a3 {[%emt 0:11:57]} a6 {[%emt 0:05:50]} 9. Bh6 {[%emt 0:14:01]} Bxh6 {[%emt 0:06:48]} 10. Rxh6 {[%emt 0:00:11]} b5 {[%emt 0:02:36]} 11. Ba2 {[%emt 0:03:25]} Bb7 {[%emt 0:03:39]} 12. Nf3 {[%emt 0:06:38]} Qb6 {[%emt 0:03:52]} 13. Ng5 {[%emt 0:08:43]} Ne5 {[%emt 0:13:04]} 14. f4 {[%emt 0:07:19]} c4 {[%emt 0:06:20]} 15. d4 {[%emt 0:10:16]} N5c6 {[%emt 0:02:12]} 16. Ne2 {[%emt 0:01:21]} Ng8 {[%emt 0:17:25]} 17. Rxh7 {[%emt 0:04:49]} Rxh7 {[%emt 0:00:17]} 18. Nxh7 {[%emt 0:00:01]} O-O-O {[%emt 0:00:46]} 19. Qd2 {[%emt 0:01:14]} Nce7 {[%emt 0:02:01]} 20. Ng5 {[%emt 0:01:18]} Nf6 {[%emt 0:02:16]} 21. Ng3 {[%emt 0:00:30]} d5 {[%emt 0:03:32]} 22. e5 {[%emt 0:01:38]} Ne4 {[%emt 0:00:54]} 23. N3xe4 {[%emt 0:00:34]} dxe4 {[%emt 0:00:15]} 24. O-O-O {[%emt 0:00:30]} Nf5 {[%emt 0:01:59]} 25. c3 {[%emt 0:00:10]} Kb8 {[%emt 0:04:20]} 26. Bb1 {[%emt 0:01:19]} e3 {[%emt 0:01:28]} 27. Qe2 {[%emt 0:01:06]} Nh4 {[%emt 0:02:15]} 28. g3 {[%emt 0:00:39]} Nf5 {[%emt 0:00:29]} 29. g4 {[%emt 0:01:04]} Nh4 {[%emt 0:02:28]} 30. Qxe3 {[%emt 0:00:57]} Ng2 {[%emt 0:00:19]} 31. Qg3 {[%emt 0:00:34]} Rf8 {[%emt 0:00:31]} 32. Rf1 {[%emt 0:00:28]} Qc7 {[%emt 0:03:01]} 33. Nxe6 {[%emt 0:00:39]} Nxf4 {[%emt 0:03:06]} 34. Rxf4 {[%emt 0:01:29]} 1-0

[Event "GER-chT Youth Countries 2018"]
[Site "Wurzburg"]
[Date "2018.10.06"]
[Round "6"]
[White "Butenandt, Svenja"]
[Black "Braeutigam, Katerina"]
[Result "1-0"]
[ECO "E12"]
[WhiteElo "1762"]
[BlackElo "1696"]
[Annotator "NA RC"]
[PlyCount "81"]
[EventDate "2018.10.03"]
[EventType "team-tourn"]
[EventCountry "GER"]
[SourceTitle "playchess.com"]
[Source "ChessBase"]
[SourceQuality "1"]
[TimeControl "40/5400+30:1800+30"]

1. d4 {[%emt 0:00:00]} Nf6 {[%emt 0:00:00]} 2. c4 {[%emt 0:00:00]} e6 {[%emt 0:00:00]} 3. Nf3 {[%emt 0:00:00]} b6 {[%emt 0:00:00]} 4. Bg5 {[%emt 0:00:37]} Bb7 {[%emt 0:00:21]} 5. e3 {[%emt 0:00:30]} Be7 {[%emt 0:01:19]} 6. Nc3 {[%emt 0:00:59]} Bb4 {[%emt 0:00:49]} 7. Be2 {[%emt 0:10:38]} h6 {[%emt 0:00:45]} 8. Bh4 {[%emt 0:01:15]} g5 {[%emt 0:02:41]} 9. Bg3 {[%emt 0:01:42]} Ne4 {[%emt 0:00:35]} 10. Qb3 {[%emt 0:03:17]} Bxc3+ {[%emt 0:03:24]} 11. bxc3 {[%emt 0:00:05]} f5 {[%emt 0:01:50]} 12. Be5 {[%emt 0:02:33]} Rg8 {[%emt 0:00:19]} 13. h3 {[%emt 0:06:50]} Nc6 {[%emt 0:02:18]} 14. Bh2 {[%emt 0:01:50]} d6 {[%emt 0:06:18]} 15. Qc2 {[%emt 0:08:48]} Na5 {[%emt 0:03:08]} 16. Rd1 {[%emt 0:06:31]} Qf6 {[%emt 0:09:21]} 17. O-O {[%emt 0:05:56]} h5 {[%emt 0:06:24]} 18. Nd2 {[%emt 0:05:28]} g4 {[%emt 0:01:26]} 19. hxg4 {[%emt 0:00:57]} hxg4 {[%emt 0:00:21]} 20. Qa4+ {[%emt 0:03:06]} Ke7 {[%emt 0:03:28]} 21. Nxe4 {[%emt 0:11:36]} Bxe4 {[%emt 0:01:45]} 22. f3 {[%emt 0:04:13]} Bc6 {[%emt 0:00:23]} 23. Qc2 {[%emt 0:02:12]} g3 {[%emt 0:00:11]} 24. d5 {[%emt 0:00:53]} gxh2+ {[%emt 0:00:16]} 25. Kh1 {[%emt 0:00:25]} Qg5 {[%emt 0:01:06]} 26. Rf2 {[%emt 0:00:39]} Qxe3 {[%emt 0:06:10]} 27. Rdf1 {[%emt 0:00:25]} Bd7 {[%emt 0:02:54]} 28. Bd3 {[%emt 0:01:20]} Qg5 {[%emt 0:04:49]} 29. Re2 {[%emt 0:01:43]} Raf8 {[%emt 0:00:28]} 30. dxe6 {[%emt 0:03:35]} Bxe6 {[%emt 0:00:18]} 31. Rfe1 {[%emt 0:00:50]} Rg6 {[%emt 0:06:09]} 32. Re3 {[%emt 0:05:38]} Kd7 {[%emt 0:02:33]} 33. Qe2 {[%emt 0:02:19]} Bf7 {[%emt 0:07:05]} 34. g4 {[%emt 0:02:41]} Kd8 {[%emt 0:10:07]} 35. Bxf5 {[%emt 0:00:13]} Rgg8 {[%emt 0:02:38]} 36. Re7 {[%emt 0:00:43]} Bxc4 {[%emt 0:07:05]} 37. Qe4 {[%emt 0:02:33]} d5 {[%emt 0:08:43]} 38. Qe6 {[%emt 0:00:45]} Qxf5 {[%emt 0:00:45]} 39. gxf5 {[%emt 0:01:01]} Bb5 {[%emt 0:00:39]} 40. Qxd5+ {[%emt 0:00:25]} Bd7 {[%emt 0:00:19]} 41. Qxd7# {[%emt 0:30:13]} 1-0

[Event "GER-chT Youth Countries 2018"]
[Site "Wurzburg"]
[Date "2018.10.06"]
[Round "6"]
[White "Dietz, Kristin"]
[Black "Lutz, Adam"]
[Result "1/2-1/2"]
[ECO "B85"]
[WhiteElo "1762"]
[BlackElo "1787"]
[Annotator "NA RC"]
[PlyCount "74"]
[EventDate "2018.10.03"]
[EventType "team-tourn"]
[EventCountry "GER"]
[SourceTitle "playchess.com"]
[Source "ChessBase"]
[SourceQuality "1"]
[TimeControl "40/5400+30:1800+30"]

1. e4 {[%emt 0:00:00]} c5 {[%emt 0:00:00]} 2. Nf3 {[%emt 0:00:00]} e6 {[%emt 0:00:00]} 3. d4 {[%emt 0:00:00]} cxd4 {[%emt 0:00:00]} 4. Nxd4 {[%emt 0:00:00]} Nf6 {[%emt 0:00:00]} 5. Nc3 {[%emt 0:00:00]} d6 {[%emt 0:00:00]} 6. Be2 {[%emt 0:00:21]} a6 {[%emt 0:00:13]} 7. O-O {[%emt 0:00:37]} Qc7 {[%emt 0:00:22]} 8. Be3 {[%emt 0:02:01]} b5 {[%emt 0:00:20]} 9. a3 {[%emt 0:01:46]} Bb7 {[%emt 0:00:11]} 10. Bd3 {[%emt 0:01:00]} Nbd7 {[%emt 0:00:54]} 11. f4 {[%emt 0:01:10]} Be7 {[%emt 0:00:41]} 12. Kh1 {[%emt 0:04:19]} O-O {[%emt 0:01:42]} 13. Qe1 {[%emt 0:02:17]} Nc5 {[%emt 0:01:23]} 14. Bg1 {[%emt 0:00:56]} Rac8 {[%emt 0:02:24]} 15. Rc1 {[%emt 0:01:30]} Qb8 {[%emt 0:02:23]} 16. Nf3 {[%emt 0:09:59]} Rfd8 {[%emt 0:05:02]} 17. e5 {[%emt 0:11:19]} Nxd3 {[%emt 0:03:24]} 18. cxd3 {[%emt 0:00:08]} Nd5 {[%emt 0:01:42]} 19. Nxd5 {[%emt 0:00:33]} Bxd5 {[%emt 0:00:30]} 20. Qg3 {[%emt 0:03:58]} Rxc1 {[%emt 0:03:12]} 21. Rxc1 {[%emt 0:00:03]} Rc8 {[%emt 0:00:22]} 22. Rxc8+ {[%emt 0:06:08]} Qxc8 {[%emt 0:00:12]} 23. Nd4 {[%emt 0:02:30]} Qc1 {[%emt 0:01:36]} 24. Qf2 {[%emt 0:00:30]} dxe5 {[%emt 0:02:21]} 25. fxe5 {[%emt 0:00:04]} Bc5 {[%emt 0:00:47]} 26. Qc2 {[%emt 0:00:20]} Qf1 {[%emt 0:05:00]} 27. Qe2 {[%emt 0:02:07]} Qxe2 {[%emt 0:03:15]} 28. Nxe2 {[%emt 0:00:02]} Be7 {[%emt 0:00:44]} 29. b4 {[%emt 0:01:55]} Bg5 {[%emt 0:01:21]} 30. Bc5 {[%emt 0:00:31]} f6 {[%emt 0:01:06]} 31. exf6 {[%emt 0:04:07]} gxf6 {[%emt 0:00:37]} 32. Kg1 {[%emt 0:00:28]} Kf7 {[%emt 0:00:29]} 33. Kf2 {[%emt 0:01:18]} e5 {[%emt 0:00:52]} 34. g3 {[%emt 0:01:11]} f5 {[%emt 0:00:43]} 35. Be3 {[%emt 0:00:30]} Be7 {[%emt 0:00:37]} 36. Nc3 {[%emt 0:04:17]} Bc6 {[%emt 0:01:57]} 37. d4 {[%emt 0:01:24]} exd4 {[%emt 0:02:37]} 1/2-1/2

[Event "GER-chT Youth Countries 2018"]
[Site "Wurzburg"]
[Date "2018.10.06"]
[Round "6"]
[White "Genov, Valentin"]
[Black "Leser, Katrin"]
[Result "0-1"]
[ECO "D53"]
[WhiteElo "1756"]
[BlackElo "2018"]
[Annotator "NA RC"]
[PlyCount "102"]
[EventDate "2018.10.03"]
[EventType "team-tourn"]
[EventCountry "GER"]
[SourceTitle "playchess.com"]
[Source "ChessBase"]
[SourceQuality "1"]
[TimeControl "40/5400+30:1800+30"]

{[%evp 17,90,-12,27,20,20,24,20,0,5,10,28,-29,8,-38,86,0,10,7,33,37,41,17,20,25,62,5,25,0,0,-35,-16,-77,4,4,12,-70,-54,-58,-64,-122,-51,-43,-54,-154,-95,-102,32767,-123,-121,-139,-127,-129,-115,-179,32767,-176,-196,-189,-183,-250,-193,-204,32767,32767,32767,-183,-210,-192,-181,32767,-238,-327,-268,-556,-604]} 1. d4 {[%emt 0:00:00]} Nf6 {[%emt 0:00:00]} 2. c4 {[%emt 0:00:00]} e6 {[%emt 0:00:00]} 3. Nc3 {[%emt 0:00:00]} d5 {[%emt 0:00:00]} 4. Bg5 {[%emt 0:00:04]} Be7 {[%emt 0:00:00]} 5. Nf3 {[%emt 0:00:10]} O-O {[%emt 0:00:31]} 6. Qc2 {[%emt 0:01:40]} h6 {[%emt 0:00:40]} 7. Bh4 {[%emt 0:01:56]} b6 {[%emt 0:00:48]} 8. Bxf6 {[%emt 0:00:27] D53: Queen's Gambit Declined: 4 Bg5 Be7: Early deviations} (8. cxd5 Nxd5 9. Nxd5 exd5 10. Bxe7 Qxe7 11. Rc1 c5 12. dxc5 Bg4 13. e3 Bxf3 14. gxf3 Rc8 15. Qd2 Rxc5 16. Rxc5 Qxc5 {½-½ (31) Onischuk,A (2664)-Akobian,V (2615) Saint Louis 2016}) 8... Bxf6 {[%emt 0:00:19]} 9. e4 {[%emt 0:00:06]} Bb7 {[%emt 0:12:55]} 10. cxd5 {[%emt 0:17:50]} exd5 {[%emt 0:00:49]} 11. e5 {[%emt 0:01:45] LiveBook: 5 Games} Be7 {[%emt 0:00:41]} 12. Bd3 {[%emt 0:03:37]} c5 {[%emt 0:01:53]} 13. O-O {[%emt 0:02:41]} Nc6 {[%emt 0:04:20]} 14. Ne2 $146 {[%emt 0:10:55]} ({Predecessor:} 14. Bf5 Ba6 15. Rfd1 cxd4 16. Nxd4 Nxe5 {1-0 (33) Mar,C (2419)-Samatra,M (1914) San Francisco 2006}) 14... Bc8 {[%emt 0:09:57]} 15. h3 {[%emt 0:07:55]} f6 {[%emt 0:16:59]} (15... Nb4 $15 16. Qb1 Nxd3 17. Qxd3 a5) 16. exf6 {[%emt 0:07:14]} ({White should play} 16. Rad1 $16) 16... Rxf6 {[%emt 0:01:04]} 17. Ne5 {[%emt 0:11:59]} Nxd4 {[%emt 0:11:19]} 18. Nxd4 {[%emt 0:00:09]} cxd4 {[%emt 0:00:18]} 19. Rfe1 {[%emt 0:11:42]} Bc5 {[%emt 0:05:29]} 20. a3 {[%emt 0:08:53]} Bb7 {[%emt 0:04:08]} 21. b4 {[%emt 0:02:04]} (21. Ng4 $16) 21... Bd6 {[%emt 0:00:31]} 22. f4 {[%emt 0:05:30]} Rc8 {[%emt 0:02:56]} 23. Qd2 {[%emt 0:00:42]} ({White should play} 23. Qf2 $14) 23... Rc3 {[%emt 0:04:07]} 24. Bf1 {[%emt 0:01:05]} Qc7 {[%emt 0:03:39]} (24... Qc8 $1 $15 25. Qxd4 Rg3) 25. Qxd4 {[%emt 0:01:02]} Rc2 {[%emt 0:02:51]} 26. Bd3 {[%emt 0:00:58]} (26. Re3 $11) 26... Qc3 $1 {[%emt 0:01:59]} 27. Qxc3 {[%emt 0:00:42]} Rxc3 {[%emt 0:00:04]} 28. Rec1 {[%emt 0:01:16]} (28. Rad1 $1 $15) 28... Rxc1+ {[%emt 0:00:36]} (28... Rb3 $17 29. Rcb1 Rxb1+ 30. Rxb1 Rxf4) 29. Rxc1 {[%emt 0:00:05]} Rxf4 {[%emt 0:00:13]} 30. Nf3 {[%emt 0:00:39]} ({White should play} 30. Nc6 $1 $15) 30... d4 {[%emt 0:03:19]} (30... a5 $142 31. bxa5 bxa5) 31. Kf2 {[%emt 0:00:53]} Kf7 {[%emt 0:04:42]} 32. Bc4+ {[%emt 0:00:52]} Kf6 {[%emt 0:00:14]} 33. Rd1 {[%emt 0:00:06]} a5 {[%emt 0:01:57]} 34. bxa5 {[%emt 0:01:20]} bxa5 {[%emt 0:00:09]} 35. a4 {[%emt 0:00:10]} (35. Rb1 $17 Be4 36. Rb6) 35... Bb4 {[%emt 0:01:14]} 36. Bb5 {[%emt 0:00:33]} Bd5 {[%emt 0:00:30]} 37. Ke2 {[%emt 0:00:23]} Bc3 {[%emt 0:00:51]} 38. Rd3 {[%emt 0:00:59]} (38. Bd3 $142) 38... Be4 {[%emt 0:03:17]} 39. Rd1 {[%emt 0:00:17]} Bc2 {[%emt 0:00:32]} 40. Rc1 {[%emt 0:00:34]} Re4+ {[%emt 0:01:56]} 41. Kf2 {[%emt 0:03:06]} Bb3 {[%emt 0:02:01]} 42. Rb1 {[%emt 0:02:57]} Ba2 {[%emt 0:04:12]} 43. Rd1 {[%emt 0:01:41]} Ke6 {[%emt 0:03:27]} 44. g3 {[%emt 0:08:58]} Kd5 {[%emt 0:02:49]} 45. Ng1 {[%emt 0:04:10]} (45. Nd2 $142 Re3 46. Nb1) 45... Bc4 $19 {[%emt 0:04:00]} 46. Bxc4+ {[%emt 0:02:04]} Kxc4 {[%emt 0:00:07]} 47. Kf3 {[%emt 0:03:18]} Re1 {[%emt 0:02:44]} 48. Rxe1 {[%emt 0:00:13]} Bxe1 {[%emt 0:00:07]} 49. g4 {[%emt 0:01:26]} d3 {[%emt 0:01:54]} 50. Ke3 {[%emt 0:00:18]} d2 {[%emt 0:00:41]} 51. Ke2 {[%emt 0:00:03]} Kb4 {[%emt 0:00:20]} 0-1